[Event "44th Indian Team Championship 2025"]
[Site "Gujarat"]
[Date "2025.03.05"]
[Round "1.19"]
[White "Sai Agni Jeevitesh, J."]
[Black "Saikat Nath"]
[Result "1-0"]
[Annotator "TA"]
[ECO "D05"]
[WhiteElo "2312"]
[BlackElo "1888"]
[PlyCount "123"]
[EventDate "2025.03.03"]
[EventCountry "IND"]
[SourceTitle "playchess.com"]
[Source "ChessBase"]
[SourceQuality "1"]
[TimeControl "5400+30"]

{[%evp 14,123,7,20,33,16,50,47,54,-24,-10,-18,-20,-60,-47,-39,0,0,0,0,11,6,4,10,3,8,18,25,8,0,14,14,8,14,18,25,25,22,29,32,29,29,20,25,29,27,33,46,37,19,53,44,177,154,164,150,176,163,202,199,752,293,2669,755,665,387,373,279,300,300,386,300,335,252,454,454,1221,533,1335,1243,970,827,5401,5154,2208,5519,5057,1039,1014,975,974,915,5057,4134,29990,0,0,0,0,-153,628,327,1691,1383,29977,29978,29971,29975,29989,29990,29990,29991]} 1. d4 {[%emt 0:00:44]} Nf6 {[%emt 0:00:17]} 2. Nf3 {[%emt 0:00:11]} e6 {[%emt 0:00:40]} 3. e3 {[%emt 0:00:12]} d5 {[%emt 0:00:32]} 4. Bd3 {[%emt 0:00:19]} c5 {[%emt 0:00:22]} 5. b3 {[%emt 0:00:07]} cxd4 {[%emt 0:00:21]} 6. exd4 {[%emt 0:00:08]} Be7 {[%emt 0:00:53]} 7. O-O {[%emt 0:00:14]} Nc6 {[%emt 0:00:08]} 8. Bb2 {[%emt 0:00:32]} Nb4 {[%emt 0:00:36] D05: Colle System with ...e6.} 9. Be2 {[%emt 0:01:09]} Ne4 {[%emt 0:01:24]} 10. c4 {[%emt 0:07:54]} O-O {[%emt 0:04:19] White is slightly better.} 11. c5 $146 {[%emt 0:08:07]} ({White should play} 11. a3 $14 Nc6 12. Qc2) (11. Nbd2 f5 12. Ne5 Nc6 13. Nxc6 bxc6 14. Nf3 Bd6 15. Ne5 Qh4 16. f3 Ng5 17. Qe1 Qxe1 18. Rfxe1 Bxe5 19. dxe5 {1-0 Legky,N (2443)-Larand,M (1948) Les Sables d'Olonneop 4th 2017 (7)}) 11... a5 $11 {[%emt 0:03:26]} 12. Nc3 {[%emt 0:05:18]} b6 {[%emt 0:08:51]} 13. Na4 {[%emt 0:17:16]} bxc5 {[%emt 0:03:01]} 14. dxc5 {[%emt 0:00:51]} Ba6 {[%emt 0:03:28]} (14... Bxc5 15. Nxc5 Nxc5 16. a3 $14 (16. Qd4 Qf6 $15)) (14... Nxc5 $5 15. Nxc5 Bxc5 $15) 15. a3 {[%emt 0:11:34]} Bxe2 {[%emt 0:01:54]} 16. Qxe2 {[%emt 0:00:03]} Nc6 {[%emt 0:02:27][%cal Oa8b8]} 17. Nd4 {[%emt 0:04:02]} Nxd4 {[%emt 0:06:34]} 18. Bxd4 {[%emt 0:00:20]} e5 {[%emt 0:05:44]} 19. Bxe5 {[%emt 0:02:27]} Nxc5 {[%emt 0:01:11]} 20. Nxc5 {[%emt 0:04:10]} Bxc5 {[%emt 0:00:11]} 21. Qg4 {[%emt 0:00:57][%csl Ge5][%cal Rg4g7]} f6 {[%emt 0:02:14]} 22. Bd4 {[%emt 0:03:53]} Bxd4 {[%emt 0:01:48]} 23. Qxd4 {[%emt 0:00:02]} Qd6 {[%emt 0:00:42]} 24. Rfd1 {[%emt 0:05:29]} Rfd8 {[%emt 0:00:23]} 25. g3 {[%emt 0:00:34]} Rab8 {[%emt 0:00:56]} 26. Qa4 {[%emt 0:00:46]} Qd7 {[%emt 0:04:31]} 27. Qxa5 {[%emt 0:03:02]} Rxb3 {[%emt 0:00:38]} 28. Rd4 {[%emt 0:00:31]} Rb5 {[%emt 0:00:30]} 29. Qa6 {[%emt 0:03:20]} Qb7 {[%emt 0:02:53]} 30. Qe6+ {[%emt 0:00:02]} Qf7 {[%emt 0:00:35]} 31. Qe2 {[%emt 0:00:11]} Rdb8 {[%emt 0:02:20]} 32. a4 {[%emt 0:01:29][%cal Ba3a4,Ba4a5,Ba5a6][%mdl 32]} Rb1+ {[%emt 0:04:12]} (32... Ra5 $1 $14) 33. Rxb1 $18 {[%emt 0:00:53]} Rxb1+ {[%emt 0:00:09][%mdl 4096] Endgame KQR-KQR} 34. Kg2 $1 {[%emt 0:00:03]} Rb8 {[%emt 0:02:59]} 35. a5 {[%emt 0:01:36]} Rd8 {[%emt 0:01:49]} 36. a6 {[%emt 0:01:18]} Rd7 $2 {[%emt 0:05:26]} (36... h6 37. Qb5 Kh7 38. Qd3+ f5) 37. Qb5 $2 {[%emt 0:03:20]} (37. Rb4 {White wants to mate with Rb8+.} h6 38. Qc2) 37... g6 $2 {[%emt 0:02:38]} (37... h6 38. Rb4 Kh7) 38. Ra4 {[%emt 0:01:12]} (38. Rb4 $142 Rd8 39. Qb8) 38... Kg7 {[%emt 0:01:30]} 39. Rb4 {[%emt 0:02:49][%cal Ob5d7]} Kh6 {[%emt 0:09:21]} 40. Rd4 {[%emt 0:00:47]} Kg7 {[%emt 0:01:37]} 41. Qc6 {[%emt 0:03:43]} Qe7 {[%emt 0:01:15] [#] Inhibits Rb4.} 42. Rb4 $3 {[%emt 0:02:32][%cal Oc6d7][%mdl 512]} Kh6 {[%emt 0:01:19]} 43. Qc1+ {[%emt 0:01:38]} Kg7 $2 {[%emt 0:00:31]} (43... g5 44. Qc3 Kg7) 44. Qb2 {[%emt 0:01:13]} Kh6 {[%emt 0:01:01]} (44... d4 $142 45. Rxd4 Rc7) 45. h4 {[%emt 0:00:58]} (45. Rb7 $142 {Threatens to win with Rxd7.} f5 46. Qd2+ g5 47. h4) 45... Qe6 {[%emt 0:13:35]} 46. Qc1+ {[%emt 0:02:12]} g5 {[%emt 0:00:49]} 47. hxg5+ {[%emt 0:00:20]} fxg5 {[%emt 0:00:02]} 48. Rb7 {[%emt 0:01:29]} Qe4+ {[%emt 0:01:26]} 49. Kh2 {[%emt 0:00:56]} (49. Kg1 $142 Rd6 50. a7) 49... Rd6 {[%emt 0:00:24]} 50. Qc7 {[%emt 0:01:42]} (50. a7 $142 Qe2 51. Rxh7+ (51. a8=B Qxf2+ 52. Kh3 Qf5+ 53. Kg2 Qe4+ 54. Kh2 Qe2+ 55. Kg1 Qd3 $16) 51... Kxh7 52. Qc7+ (52. a8=B Qxf2+ 53. Kh3 Rh6+ 54. Kg4 Qe2+ 55. Kf5 Qe6+ 56. Kxg5 Rg6+ 57. Kh5 Qh3#) 52... Rd7 53. Qxd7+ (53. a8=Q Qxf2+ 54. Kh3 Qf5+ 55. Kh2 Rxc7 56. Qa4 Rc2+) 53... Kg6 54. Qd6+ (54. a8=B Qxf2+ 55. Kh3 Qf1+ 56. Kh2 Qf2+ 57. Kh3 Qf1+ 58. Kh2 Qf2+ $11) 54... Kg7 55. Qc7+ (55. a8=B Qxf2+ 56. Kh3 Qf5+ 57. Kg2 Qc2+ 58. Kf3 Qd1+ 59. Ke3 Qc1+ 60. Kd3 Qc4+ 61. Kd2 Qa2+ 62. Ke3 Qxa8 $11) 55... Kf6 56. Qd8+ (56. a8=B Qxf2+ 57. Kh3 Qf1+ 58. Kh2 Qf2+ 59. Kh3 Qf1+ 60. Kh2 Qf2+ $11) (56. Qc6+ Kg7 $18) 56... Qe7 57. a8=Q (57. a8=R Qxd8 58. Rxd8 g4 $18) 57... Qxd8 58. Qxd8+ Ke5 59. Qxg5+ Ke6 60. Qe3+ Kd7 61. g4) 50... Rxa6 {[%emt 0:00:38]} 51. Qg7+ {[%emt 0:00:27]} Kh5 {[%emt 0:00:09]} 52. Qf7+ {[%emt 0:00:13]} (52. Qxh7+ Qxh7 53. Rxh7+ Kg6 $16) 52... Qg6 {[%emt 0:01:05]} 53. Qf3+ {[%emt 0:00:06]} (53. Qxh7+ Qxh7 54. Rxh7+ Kg6 $11) 53... Kh6 {[%emt 0:00:01] [#]} 54. Qf8+ $2 {[%emt 0:00:14]} (54. Qxd5 Rb6 $14) (54. g4 $1 {mates} Qg7 55. Qh3+ (55. Rxg7 Kxg7 56. Qe3 Rg6 $18) 55... Kg6 56. Qd3+ (56. Rxg7+ Kxg7 57. Qc3+ Kf7 $18) 56... Kh6 57. Qxa6+ Qg6 58. Qa3 (58. Qxg6+ Kxg6 59. Rb6+ Kf7 $18) 58... Qh5+ 59. gxh5) 54... Kh5 $11 {[%emt 0:00:07]} 55. Rg7 {[%emt 0:01:31]} Rf6 {[%emt 0:00:11]} 56. Qe7 {[%emt 0:00:31]} (56. Rxh7+ $1 $11 Qxh7 57. Qxf6) 56... Re6 $2 {[%emt 0:01:48]} (56... Rxf2+ $17 57. Kg1 Qf6 58. Rxh7+ Kg4 59. Qb4+ (59. Qd7+ $2 Rf5 $19) 59... d4 (59... Kxg3 $2 {perishes.} 60. Qe1 $18)) 57. Qd7 $18 {[%emt 0:00:42]} ({Worse is} 57. Rxh7+ Kg4 58. Qd7 Kf3 $11) 57... Qf5 {[%emt 0:00:37] [#]} (57... Qe8 58. Qxd5 (58. Rxh7+ Kg6 $18) 58... Rg6) 58. Rf7 $1 {[%emt 0:00:04]} (58. Rxh7+ Kg4 59. Rf7 Rh6+ 60. Kg2 Qxd7 61. f3+ (61. Rxd7 Rb6 $16) 61... Kh5 62. Rxd7 Rb6 $16) 58... Qe5 {[%emt 0:00:31]} 59. Rxh7+ {[%emt 0:00:10] White mates.} Kg4 {[%emt 0:00:04]} 60. Rh6 {[%emt 0:00:58]} Kf5 {[%emt 0:00:14]} 61. Qh7+ {[%emt 0:00:13]} Kg4 {[%emt 0:00:12]} 62. Rxe6 {[%emt 0:00:07] Weighted Error Value: White=0.55/Black=1.00  Loses game:     	---       	Black=1      Mistake:       	White=4     	Black=6      Inaccurate:     	White=1     	Black=5      OK:         	White=18    	Black=13     Best:        	White=3     	Black=3      Strong:       	White=1     	---} 1-0

[Event "44th Indian Team Championship 2025"]
[Site "Gujarat"]
[Date "2025.03.05"]
[Round "1.20"]
[White "Mayank Sharma Nandkishore"]
[Black "Nithik Reddy Bhavanam"]
[Result "1-0"]
[Annotator "NA RC"]
[ECO "D02"]
[WhiteElo "1843"]
[BlackElo "2021"]
[PlyCount "103"]
[EventDate "2025.03.03"]
[EventCountry "IND"]
[SourceTitle "playchess.com"]
[Source "ChessBase"]
[SourceQuality "1"]
[TimeControl "5400+30"]

1. d4 {[%emt 0:00:08]} Nf6 {[%emt 0:00:24]} 2. Nf3 {[%emt 0:00:36]} e6 {[%emt 0:00:17]} 3. Bf4 {[%emt 0:00:41]} d5 {[%emt 0:00:39]} 4. e3 {[%emt 0:00:08]} c5 {[%emt 0:00:13]} 5. c3 {[%emt 0:00:10]} Nc6 {[%emt 0:00:04]} 6. Nbd2 {[%emt 0:00:23]} cxd4 {[%emt 0:01:01]} 7. exd4 {[%emt 0:00:08]} Nh5 {[%emt 0:00:17]} 8. Bg5 {[%emt 0:06:39]} Be7 {[%emt 0:00:26]} 9. Bxe7 {[%emt 0:00:40]} Qxe7 {[%emt 0:00:09]} 10. Bb5 {[%emt 0:01:01]} g6 {[%emt 0:03:56]} 11. Ne5 {[%emt 0:07:37]} Bd7 {[%emt 0:04:03]} 12. Nxd7 {[%emt 0:00:16]} Qxd7 {[%emt 0:00:28]} 13. Nf3 {[%emt 0:00:06]} O-O {[%emt 0:00:50]} 14. O-O {[%emt 0:01:18]} Qd6 {[%emt 0:02:52]} 15. Re1 {[%emt 0:00:28]} a6 {[%emt 0:01:33]} 16. Bd3 {[%emt 0:00:45]} f6 {[%emt 0:02:19]} 17. g3 {[%emt 0:09:17]} Rad8 {[%emt 0:00:47]} 18. a4 {[%emt 0:12:45]} e5 {[%emt 0:05:05]} 19. Qb3 {[%emt 0:01:23]} Kh8 {[%emt 0:01:10]} 20. Be2 {[%emt 0:00:37]} e4 21. Nh4 {[%emt 0:00:30]} Ng7 22. Qxb7 {[%emt 0:00:30]} g5 23. Qxg7+ {[%emt 0:00:30]} Kxg7 24. Nf5+ {[%emt 0:00:30]} Kf7 25. Nxd6+ {[%emt 0:00:30]} Rxd6 26. b4 {[%emt 0:00:30]} Nb8 {[%emt 0:27:45]} 27. b5 {[%emt 0:23:20]} Rc8 {[%emt 0:02:10]} 28. Ra3 {[%emt 0:00:42]} a5 {[%emt 0:00:37]} 29. Bg4 {[%emt 0:00:43]} Rc7 30. f3 {[%emt 0:00:30]} exf3 31. Bh5+ {[%emt 0:00:30]} Kg7 32. Re8 {[%emt 0:00:30]} Nd7 {[%emt 0:03:03]} 33. Re1 {[%emt 0:00:55]} Nb8 {[%emt 0:07:04]} 34. Re8 {[%emt 0:00:22]} Nd7 {[%emt 0:01:17]} 35. Re7+ {[%emt 0:01:21]} Kh6 {[%emt 0:00:09]} 36. Bg4 {[%emt 0:06:35]} Kg6 {[%emt 0:07:48]} 37. Bxf3 {[%emt 0:06:37]} Rc8 {[%emt 0:00:35]} 38. g4 {[%emt 0:01:00]} Rf8 {[%emt 0:10:58]} 39. c4 {[%emt 0:01:41]} dxc4 {[%emt 0:08:57]} 40. Be4+ {[%emt 0:00:40]} f5 {[%emt 0:00:06]} 41. Bxf5+ {[%emt 0:00:14]} Rxf5 {[%emt 0:00:05]} 42. gxf5+ {[%emt 0:00:15]} Kxf5 {[%emt 0:00:04]} 43. Rf3+ {[%emt 0:08:39]} Kg4 {[%emt 0:03:09]} 44. Kg2 {[%emt 0:00:14]} Nf6 {[%emt 0:01:38]} 45. Rc7 {[%emt 0:03:50]} Nd5 {[%emt 0:01:20]} 46. h3+ {[%emt 0:00:10]} Kh5 {[%emt 0:00:08]} 47. Rxc4 {[%emt 0:01:10]} Nf4+ {[%emt 0:03:26]} 48. Kf2 {[%emt 0:01:02]} Rf6 {[%emt 0:00:33]} 49. Rc6 {[%emt 0:00:36]} Rf8 {[%emt 0:00:35]} 50. b6 {[%emt 0:00:44]} Nxh3+ {[%emt 0:00:20]} 51. Kg3 {[%emt 0:00:06]} Nf4 {[%emt 0:00:05]} 52. Rf2 {[%emt 0:00:44]} 1-0

[Event "44th Indian Team Championship 2025"]
[Site "Gujarat"]
[Date "2025.03.05"]
[Round "1.21"]
[White "Ashutosh, Kumar"]
[Black "Sherla Prathamesh"]
[Result "0-1"]
[Annotator "TA"]
[ECO "C03"]
[WhiteElo "1871"]
[BlackElo "2131"]
[PlyCount "136"]
[EventDate "2025.03.03"]
[EventCountry "IND"]
[SourceTitle "playchess.com"]
[Source "ChessBase"]
[SourceQuality "1"]
[TimeControl "5400+30"]

{[%evp 12,136,8,9,0,0,14,6,-6,-20,-19,-27,-27,-27,-25,-35,-27,-26,-35,-27,-26,-25,-23,-51,-42,-59,-53,-68,-51,-62,-31,-25,-25,-27,-33,-35,-23,-27,-29,-27,0,0,0,0,0,0,6,5,11,7,7,0,29,0,0,0,-4,-20,-16,-60,0,0,0,0,0,0,0,0,0,0,0,0,0,0,0,0,8,0,0,0,0,-8,-8,-8,-8,-59,-61,-82,-82,-82,-82,-88,-90,-110,-90,-138,-138,-138,-140,-143,-79,-106,-73,-101,-77,-64,-64,-77,0,-113,-129,-125,-118,-133,-133,-133,-133,-134,-134,-29994,-29990,-29996,-29997,-29997,-29998,-29998,-29999]} 1. e4 {[%emt 0:00:15]} e6 {[%emt 0:00:05]} 2. d4 {[%emt 0:00:11]} d5 {[%emt 0:00:06]} 3. Nc3 {[%emt 0:00:07]} Be7 {[%emt 0:01:20]} 4. Nf3 {[%emt 0:01:40]} Nf6 {[%emt 0:00:05]} 5. Bd3 {[%emt 0:00:29]} c5 {[%emt 0:00:24]} 6. dxc5 {[%emt 0:07:25]} dxe4 {[%emt 0:00:11]} 7. Nxe4 {[%emt 0:00:59]} Nxe4 {[%emt 0:00:06] C03: French Tarrasch: Unusual Black 3rd moves.} 8. Bxe4 {[%emt 0:00:15] aiming for Qxd8+.} Qxd1+ {[%emt 0:00:05]} 9. Kxd1 {[%emt 0:00:11]} Bxc5 {[%emt 0:00:05] The position is equal.} 10. Be3 {[%emt 0:02:16]} Bxe3 {[%emt 0:00:21]} 11. fxe3 {[%emt 0:00:02]} Nd7 {[%emt 0:00:19]} 12. c4 {[%emt 0:02:04]} Nc5 {[%emt 0:04:41]} 13. Bc2 {[%emt 0:00:18]} a5 {[%emt 0:00:13]} 14. Ke2 {[%emt 0:01:30]} Ke7 $146 {[%emt 0:03:14]} (14... f6 15. Nd2 b6 16. Ne4 Ba6 17. b3 Ke7 18. Rhd1 Nxe4 19. Bxe4 Rac8 20. Rd2 f5 {½-½ Nurbekoglu,M (2085)-Wenzel,J (2109) Regionalliga SO 0203 2002 (8.2)}) 15. Rhd1 {[%emt 0:05:52]} f6 {[%emt 0:00:38]} 16. b3 {[%emt 0:01:14]} e5 {[%emt 0:01:38] Hoping for ...e4.} 17. Kd2 {[%emt 0:01:54]} Bd7 {[%emt 0:07:17]} 18. Kc3 {[%emt 0:00:28]} Bc6 {[%emt 0:00:44]} 19. a3 {[%emt 0:00:28]} Ne4+ {[%emt 0:01:22]} 20. Kb2 {[%emt 0:01:21]} Rhd8 {[%emt 0:14:00]} 21. Rxd8 {[%emt 0:30:52]} Rxd8 {[%emt 0:00:13]} 22. Rd1 {[%emt 0:00:22] Wards off Nd2} Rxd1 {[%emt 0:01:09]} 23. Bxd1 $11 {[%emt 0:00:02][%mdl 4096] Endgame KBN-KBN} Nf2 {[%emt 0:00:31]} 24. Kc1 {[%emt 0:00:59]} g5 {[%emt 0:04:14]} 25. Bc2 {[%emt 0:10:08]} Ng4 {[%emt 0:01:48]} 26. Kd2 {[%emt 0:00:24]} h5 {[%emt 0:01:41]} 27. e4 {[%emt 0:05:54]} Kd6 {[%emt 0:03:04]} 28. b4 {[%emt 0:00:11]} b6 {[%emt 0:01:07]} 29. h4 {[%emt 0:02:42]} gxh4 {[%emt 0:03:19]} 30. Nxh4 {[%emt 0:00:05]} Nh6 {[%emt 0:01:53]} 31. Ke3 {[%emt 0:01:15]} Ke6 {[%emt 0:03:49]} 32. Bb3 {[%emt 0:02:58]} Ng4+ {[%emt 0:01:50]} 33. Kf3 {[%emt 0:00:21]} Nh2+ {[%emt 0:03:18]} 34. Ke3 {[%emt 0:06:13]} Nf1+ {[%emt 0:04:07]} 35. Kd3 {[%emt 0:00:45]} axb4 {[%emt 0:03:02]} (35... Bxe4+ $1 $15 36. Ke2 Ng3+ 37. Kf2 Nf5 (37... Nh1+ 38. Ke3 $15) 38. c5+ Kd7 39. Nxf5 Bxf5 40. Ba4+ (40. cxb6 axb4 41. Ba4+ Kc8 $17) 40... Kc7) 36. c5+ {[%emt 0:02:05]} (36. axb4 Bxe4+ 37. Ke2 (37. Kxe4 Nd2+ 38. Kd3 Nxb3 $17) 37... Ng3+ 38. Kf2 Nf5 (38... Nh1+ 39. Kg1 $15) 39. Nxf5 (39. c5+ Kd7 $15) 39... Bxf5 $15 (39... Kxf5 40. g3 $15)) 36... Kd7 {[%emt 0:00:37]} 37. axb4 {[%emt 0:00:11]} (37. cxb6 bxa3 38. Kc3 Bxe4 $15) 37... bxc5 {[%emt 0:11:58]} 38. bxc5 {[%emt 0:00:18]} Bxe4+ {[%emt 0:10:11]} 39. Kxe4 {[%emt 0:02:41]} Nd2+ {[%emt 0:00:09]} 40. Kf5 {[%emt 0:02:20]} Nxb3 {[%emt 0:00:07]} 41. Kxf6 {[%emt 0:01:21] KN-KN} e4 {[%emt 0:00:10]} (41... Nxc5 {simplifies} 42. Kxe5 Ke7 43. Ng6+ Kf7) 42. Ke5 {[%emt 0:03:27]} e3 {[%emt 0:00:02]} 43. Nf3 {[%emt 0:01:10]} e2 {[%emt 0:00:50]} 44. Kf4 {[%emt 0:03:12]} Nd4 {[%emt 0:00:42] ( -> ...Nxf3)} 45. Ne1 {[%emt 0:00:33]} Kc6 {[%emt 0:00:09]} 46. Nd3 {[%emt 0:00:35]} Nc2 {[%emt 0:00:59]} 47. Kg5 {[%emt 0:00:50]} Kb5 {[%emt 0:00:53]} (47... e1=R 48. Nxe1 Nxe1 49. g3) 48. Kxh5 {[%emt 0:00:22]} (48. c6 $11 Kxc6 (48... e1=R 49. Nxe1 Nd4 50. Kxh5 $11) 49. g4) 48... Kc4 $15 {[%emt 0:01:03]} (48... e1=Q 49. Nxe1 Nxe1 50. g4 $11) (48... e1=B 49. g4 $11) (48... e1=R 49. Nxe1 Nxe1 50. g4 $11) 49. c6 {[%emt 0:02:17]} Kxd3 $17 {[%emt 0:00:41] KN-KPP} 50. c7 {[%emt 0:00:02]} e1=Q {[%emt 0:00:10] ( -> ...Qa5+)} ({Worse is} 50... e1=R 51. c8=Q (51. c8=B $2 {is the wrong capture.} Re5+ 52. Kg6 Kd4 $19) 51... Ne3 52. g4 $18) 51. c8=Q {[%emt 0:00:05]} Qe5+ {[%emt 0:01:23]} 52. Kh4 {[%emt 0:01:30]} Ne3 {[%emt 0:01:06]} 53. g4 {[%emt 0:00:36]} ({Better is} 53. Qh3) 53... Ng2+ {[%emt 0:00:23]} (53... Qh2+ $2 54. Kg5 Qe5+ 55. Kg6 Qe4+ 56. Kf7) 54. Kh3 {[%emt 0:00:10]} Nf4+ {[%emt 0:00:49]} 55. Kh4 {[%emt 0:00:39]} Ng6+ {[%emt 0:02:09]} 56. Kh3 {[%emt 0:00:02]} Qe3+ {[%emt 0:01:02]} 57. Kh2 {[%emt 0:00:38]} Qf2+ {[%emt 0:02:27]} 58. Kh1 {[%emt 0:00:27]} Qe1+ {[%emt 0:01:16]} 59. Kh2 {[%emt 0:00:18]} Qe5+ {[%emt 0:00:59]} (59... Ne7 $17 60. Qd7+ Kc4) 60. Kh1 {[%emt 0:00:26]} (60. Kh3 $1 $11) 60... Qd5+ {[%emt 0:02:55]} 61. Kh2 {[%emt 0:00:25] [#]} Qd6+ $1 {[%emt 0:01:05]} 62. Kh1 {[%emt 0:01:06]} Nf4 {[%emt 0:00:32] ( -> ...Qd5+)} 63. Qb7 {[%emt 0:01:08]} Ke3 {[%emt 0:02:19] ( -> ...Qd1+) Against Qf3+} 64. Qb3+ {[%emt 0:00:21]} Kf2 {[%emt 0:01:21] ( -> ...Qh6+)} 65. Qc2+ $2 {[%emt 0:00:30][%mdl 8192] [#] Now White is beyond hope.} (65. Qa2+ $17 Kg3 66. Qh2+ Kf3 67. Qb2) 65... Kg3 {[%emt 0:01:22] Black mates.} 66. g5 {[%emt 0:00:50]} Qd5+ {[%emt 0:01:08]} 67. Kg1 {[%emt 0:00:04]} Qd4+ {[%emt 0:00:23]} 68. Kf1 {[%emt 0:00:34]} Qa1+ {[%emt 0:00:06] Weighted Error Value: White=0.14 (very precise) /Black=0.11 (very precise)   Loses game:     	White=1     	---        Mistake:       	White=3     	Black=2      Inaccurate:     	White=4     	Black=4      OK:         	White=17    	Black=28     Best:        	White=8     	Black=4} 0-1